[Event "*** Titled Tuesday Blitz"]
[Site "Chess.com"]
[Date "2021.02.16"]
[Round "2"]
[White "Aya5ian"]
[Black "milenapn"]
[Result "0-1"]
[WhiteElo "2359"]
[BlackElo "2115"]
[TimeControl "180+1"]
[EndTime "10:19:19 PST"]
[Termination "milenapn won on time"]

1. Nf3 {[%clk 0:02:42.3]} 1... g6 {[%clk 0:02:59]} 2. d4 {[%clk 0:02:41.7]} 2...
Bg7 {[%clk 0:02:59.4]} 3. c4 {[%clk 0:02:41.9]} 3... Nf6 {[%clk 0:02:59.8]} 4.
e3 {[%clk 0:02:42.1]} 4... d6 {[%clk 0:03:00.1]} 5. Be2 {[%clk 0:02:40.8]} 5...
O-O {[%clk 0:03:00.4]} 6. O-O {[%clk 0:02:38.9]} 6... Nbd7 {[%clk 0:03:00.7]} 7.
b4 {[%clk 0:02:38.1]} 7... c6 {[%clk 0:02:59.8]} 8. Nc3 {[%clk 0:02:37.8]} 8...
e5 {[%clk 0:02:59.5]} 9. Qc2 {[%clk 0:02:36.4]} 9... Qe7 {[%clk 0:02:57.9]} 10.
a4 {[%clk 0:02:34.7]} 10... Nh5 {[%clk 0:02:56.7]} 11. b5 {[%clk 0:02:21.3]}
11... f5 {[%clk 0:02:55.5]} 12. Ba3 {[%clk 0:02:20.3]} 12... e4 {[%clk
0:02:39.2]} 13. Nd2 {[%clk 0:02:08.3]} 13... Nhf6 {[%clk 0:02:38.8]} 14. Rab1
{[%clk 0:01:54.8]} 14... Rf7 {[%clk 0:02:28.4]} 15. bxc6 {[%clk 0:01:47.2]}
15... bxc6 {[%clk 0:02:27.9]} 16. Rb2 {[%clk 0:01:36.3]} 16... Bf8 {[%clk
0:02:26]} 17. Rfb1 {[%clk 0:01:34.4]} 17... Rg7 {[%clk 0:02:06.2]} 18. d5 {[%clk
0:00:57.4]} 18... c5 {[%clk 0:02:03.3]} 19. Nb5 {[%clk 0:00:57.5]} 19... Ne5
{[%clk 0:02:02.6]} 20. Nb3 {[%clk 0:00:47]} 20... g5 {[%clk 0:01:58.2]} 21. Nxd6
{[%clk 0:00:34.5]} 21... Qxd6 {[%clk 0:01:57.5]} 22. Nxc5 {[%clk 0:00:34.6]}
22... Qc7 {[%clk 0:01:45.3]} 23. Qc3 {[%clk 0:00:24.7]} 23... Neg4 {[%clk
0:01:18.5]} 24. Bxg4 {[%clk 0:00:18.1]} 24... Nxg4 {[%clk 0:01:17.8]} 25. h3
{[%clk 0:00:18]} 25... Bxc5 {[%clk 0:00:52.4]} 26. Bxc5 {[%clk 0:00:16.3]} 26...
Qxc5 {[%clk 0:00:50.5]} 27. hxg4 {[%clk 0:00:16.5]} 27... f4 {[%clk 0:00:45.8]}
28. Rb8 {[%clk 0:00:15.3]} 28... Rxb8 {[%clk 0:00:45.2]} 29. Rxb8 {[%clk
0:00:15.4]} 29... fxe3 {[%clk 0:00:41.9]} 30. Qe5 {[%clk 0:00:14.6]} 30... exf2+
{[%clk 0:00:39.8]} 31. Kf1 {[%clk 0:00:14.8]} 31... Qxc4+ {[%clk 0:00:27.4]} 32.
Kxf2 {[%clk 0:00:14.7]} 32... Rf7+ {[%clk 0:00:15.5]} 33. Kg3 {[%clk 0:00:15.1]}
33... Qd3+ {[%clk 0:00:15.4]} 34. Kh2 {[%clk 0:00:15.3]} 34... Qe3 {[%clk
0:00:13.5]} 35. Rxc8+ {[%clk 0:00:13.9]} 35... Rf8 {[%clk 0:00:13.8]} 36. Qxg5+
{[%clk 0:00:13.5]} 36... Qxg5 {[%clk 0:00:12.3]} 37. Rxf8+ {[%clk 0:00:13.6]}
37... Kxf8 {[%clk 0:00:13.2]} 0-1

[Event "*** Titled Tuesday Blitz"]
[Site "Chess.com"]
[Date "2021.02.16"]
[Round "2"]
[White "kekic76"]
[Black "WilliamSchill"]
[Result "1-0"]
[WhiteElo "2387"]
[BlackElo "2058"]
[TimeControl "180+1"]
[EndTime "10:19:20 PST"]
[Termination "kekic76 won on time"]

1. e4 {[%clk 0:03:00.9]} 1... c5 {[%clk 0:02:59.3]} 2. Nf3 {[%clk 0:03:00.7]}
2... Nc6 {[%clk 0:02:59.3]} 3. d4 {[%clk 0:03:00.4]} 3... cxd4 {[%clk
0:02:59.4]} 4. Nxd4 {[%clk 0:03:01.1]} 4... e5 {[%clk 0:02:59.6]} 5. Nb5 {[%clk
0:03:01]} 5... d6 {[%clk 0:02:59.8]} 6. N1c3 {[%clk 0:03:01.1]} 6... a6 {[%clk
0:02:59.9]} 7. Na3 {[%clk 0:03:01.6]} 7... Be7 {[%clk 0:03:00.2]} 8. Nd5 {[%clk
0:02:59.8]} 8... Nf6 {[%clk 0:03:00.2]} 9. Nc4 {[%clk 0:02:52.4]} 9... b5 {[%clk
0:02:37.1]} 10. Nxf6+ {[%clk 0:02:48]} 10... gxf6 {[%clk 0:02:33.1]} 11. Ne3
{[%clk 0:02:47.7]} 11... Be6 {[%clk 0:02:22.6]} 12. a4 {[%clk 0:02:47.4]} 12...
b4 {[%clk 0:02:11.6]} 13. Bc4 {[%clk 0:02:38.6]} 13... Bxc4 {[%clk 0:01:52.2]}
14. Nxc4 {[%clk 0:02:37.7]} 14... Nd4 {[%clk 0:01:51.8]} 15. Be3 {[%clk
0:02:34.7]} 15... Rc8 {[%clk 0:01:48]} 16. b3 {[%clk 0:02:31.4]} 16... d5 {[%clk
0:01:30.6]} 17. exd5 {[%clk 0:02:30.7]} 17... Qxd5 {[%clk 0:01:28.4]} 18. O-O
{[%clk 0:02:22.9]} 18... Bc5 {[%clk 0:01:17]} 19. Bxd4 {[%clk 0:01:41.1]} 19...
Qxd4 {[%clk 0:01:15.8]} 20. Qh5 {[%clk 0:01:35.2]} 20... Ke7 {[%clk 0:00:46.3]}
21. Rad1 {[%clk 0:01:32.2]} 21... Qf4 {[%clk 0:00:46.2]} 22. g3 {[%clk 0:01:22]}
22... Qg5 {[%clk 0:00:34.7]} 23. Qf3 {[%clk 0:01:21.5]} 23... Rc7 {[%clk
0:00:33]} 24. Rd5 {[%clk 0:01:10.7]} 24... h5 {[%clk 0:00:27.4]} 25. h4 {[%clk
0:00:55.4]} 25... Qg4 {[%clk 0:00:24.7]} 26. Qxg4 {[%clk 0:00:50.5]} 26... hxg4
{[%clk 0:00:24.5]} 27. Rfd1 {[%clk 0:00:50.8]} 27... Bd4 {[%clk 0:00:20.4]} 28.
Kf1 {[%clk 0:00:28.3]} 28... Rhc8 {[%clk 0:00:20.1]} 29. Ke2 {[%clk 0:00:25.4]}
29... Rc6 {[%clk 0:00:19.8]} 30. Rd2 {[%clk 0:00:24.5]} 30... Ke6 {[%clk
0:00:19.4]} 31. Ra5 {[%clk 0:00:22.2]} 31... f5 {[%clk 0:00:09.4]} 32. Rxd4
{[%clk 0:00:18.6]} 32... exd4 {[%clk 0:00:09]} 33. Kd3 {[%clk 0:00:18.6]} 33...
Rxc4 {[%clk 0:00:05.7]} 34. bxc4 {[%clk 0:00:17.2]} 34... Rc6 {[%clk 0:00:05.7]}
35. Kxd4 {[%clk 0:00:16.2]} 35... Rd6+ {[%clk 0:00:04.8]} 36. Rd5 {[%clk
0:00:16.2]} 36... Rc6 {[%clk 0:00:04.2]} 37. c5 {[%clk 0:00:14]} 37... f6 {[%clk
0:00:03.4]} 38. Kc4 {[%clk 0:00:12.7]} 38... a5 {[%clk 0:00:02.6]} 39. Rd8
{[%clk 0:00:10.8]} 39... f4 {[%clk 0:00:02.2]} 40. Kb5 {[%clk 0:00:10.1]} 40...
Rc7 {[%clk 0:00:02.1]} 41. c6 {[%clk 0:00:09.6]} 1-0

[Event "*** Titled Tuesday Blitz"]
[Site "Chess.com"]
[Date "2021.02.16"]
[Round "2"]
[White "ViktoriyaTarasova"]
[Black "Grieve72"]
[Result "0-1"]
[WhiteElo "2288"]
[BlackElo "2472"]
[TimeControl "180+1"]
[EndTime "10:19:21 PST"]
[Termination "Grieve72 won by resignation"]

1. d4 {[%clk 0:03:00.9]} 1... f5 {[%clk 0:02:56.5]} 2. c4 {[%clk 0:03:00.2]}
2... Nf6 {[%clk 0:02:56.7]} 3. g3 {[%clk 0:03:00.9]} 3... g6 {[%clk 0:02:56.8]}
4. Bg2 {[%clk 0:03:01.6]} 4... Bg7 {[%clk 0:02:57.4]} 5. Nf3 {[%clk 0:03:02.2]}
5... O-O {[%clk 0:02:58]} 6. O-O {[%clk 0:03:02.8]} 6... d6 {[%clk 0:02:58.5]}
7. Nc3 {[%clk 0:03:03.3]} 7... c6 {[%clk 0:02:59]} 8. b3 {[%clk 0:03:03]} 8...
Na6 {[%clk 0:02:58.3]} 9. Bb2 {[%clk 0:03:02.8]} 9... Qc7 {[%clk 0:02:58.8]} 10.
Re1 {[%clk 0:03:01.4]} 10... e5 {[%clk 0:02:59]} 11. dxe5 {[%clk 0:03:00.9]}
11... dxe5 {[%clk 0:02:59.9]} 12. e4 {[%clk 0:03:01.4]} 12... f4 {[%clk
0:02:56.9]} 13. h3 {[%clk 0:02:51.4]} 13... fxg3 {[%clk 0:02:48.2]} 14. fxg3
{[%clk 0:02:49.1]} 14... Nh5 {[%clk 0:02:48.3]} 15. Kh2 {[%clk 0:02:48]} 15...
Qe7 {[%clk 0:02:31]} 16. Qe2 {[%clk 0:02:46.4]} 16... Nc7 {[%clk 0:02:27.5]} 17.
a4 {[%clk 0:02:34.3]} 17... Na6 {[%clk 0:02:08.9]} 18. Ba3 {[%clk 0:02:32.5]}
18... Nb4 {[%clk 0:02:06.9]} 19. a5 {[%clk 0:02:30]} 19... Be6 {[%clk
0:01:54.8]} 20. Red1 {[%clk 0:02:15.7]} 20... Rf7 {[%clk 0:01:26.8]} 21. Rac1
{[%clk 0:01:32.7]} 21... Raf8 {[%clk 0:01:23.1]} 22. Rf1 {[%clk 0:01:11.7]}
22... b6 {[%clk 0:01:19.2]} 23. axb6 {[%clk 0:01:08.6]} 23... axb6 {[%clk
0:01:20.1]} 24. Na2 {[%clk 0:01:07.8]} 24... c5 {[%clk 0:01:20.1]} 25. Bxb4
{[%clk 0:00:52]} 25... cxb4 {[%clk 0:01:21]} 26. Qe1 {[%clk 0:00:51.9]} 26...
Bh6 {[%clk 0:01:14.9]} 27. Rc2 {[%clk 0:00:51.4]} 27... Nxg3 {[%clk 0:00:57.1]}
28. Kxg3 {[%clk 0:00:41.2]} 28... Bf4+ {[%clk 0:00:57.4]} 29. Kf2 {[%clk
0:00:41.5]} 29... Qc5+ {[%clk 0:00:57.8]} 30. Ke2 {[%clk 0:00:38.7]} 30... Qe3+
{[%clk 0:00:58]} 31. Kd1 {[%clk 0:00:34.5]} 31... Rd8+ {[%clk 0:00:33.2]} 32.
Nd2 {[%clk 0:00:34.4]} 32... Qxb3 {[%clk 0:00:33.6]} 33. Rf2 {[%clk 0:00:26.3]}
33... Rfd7 {[%clk 0:00:26.8]} 34. Nc1 {[%clk 0:00:24.2]} 34... Qa4 {[%clk
0:00:23.2]} 35. Rxf4 {[%clk 0:00:20.1]} 35... Rxd2+ {[%clk 0:00:17.3]} 36. Qxd2
{[%clk 0:00:18.6]} 36... Rxd2+ {[%clk 0:00:18.2]} 37. Kxd2 {[%clk 0:00:19.3]}
37... exf4 {[%clk 0:00:18.9]} 38. Rb2 {[%clk 0:00:17.2]} 38... Qa5 {[%clk
0:00:15.5]} 39. Kc2 {[%clk 0:00:16.3]} 39... Bxc4 {[%clk 0:00:14.5]} 40. e5
{[%clk 0:00:16.2]} 40... Qxe5 {[%clk 0:00:14.2]} 41. Rxb4 {[%clk 0:00:16.3]}
41... Qc5 {[%clk 0:00:13.5]} 42. Kc3 {[%clk 0:00:14.2]} 42... Bd5+ {[%clk
0:00:13.1]} 43. Kd2 {[%clk 0:00:12.1]} 43... Qxb4+ {[%clk 0:00:12.7]} 0-1

[Event "*** Titled Tuesday Blitz"]
[Site "Chess.com"]
[Date "2021.02.16"]
[Round "2"]
[White "queen_iryna"]
[Black "kingofthenil"]
[Result "0-1"]
[WhiteElo "2399"]
[BlackElo "2674"]
[TimeControl "180+1"]
[EndTime "10:19:22 PST"]
[Termination "kingofthenil won by checkmate"]

1. e4 {[%clk 0:03:00.9]} 1... Nc6 {[%clk 0:03:00.2]} 2. Nf3 {[%clk 0:02:59.5]}
2... d5 {[%clk 0:03:00.6]} 3. exd5 {[%clk 0:02:59.5]} 3... Qxd5 {[%clk
0:03:01.5]} 4. Nc3 {[%clk 0:02:59.6]} 4... Qh5 {[%clk 0:03:01.5]} 5. Bb5 {[%clk
0:02:55.6]} 5... Bg4 {[%clk 0:03:01.2]} 6. d4 {[%clk 0:02:47.8]} 6... O-O-O
{[%clk 0:03:00]} 7. Bxc6 {[%clk 0:02:47.3]} 7... bxc6 {[%clk 0:03:00.9]} 8. Be3
{[%clk 0:02:45.9]} 8... e6 {[%clk 0:02:55.4]} 9. Qe2 {[%clk 0:02:45.1]} 9...
Bxf3 {[%clk 0:02:55.4]} 10. gxf3 {[%clk 0:02:44.4]} 10... Bb4 {[%clk 0:02:53.7]}
11. Qa6+ {[%clk 0:02:39]} 11... Kd7 {[%clk 0:02:53.4]} 12. O-O-O {[%clk
0:02:25.4]} 12... Bxc3 {[%clk 0:02:49.9]} 13. bxc3 {[%clk 0:02:26.3]} 13... Ne7
{[%clk 0:02:49.4]} 14. Rhg1 {[%clk 0:02:20.2]} 14... Qxf3 {[%clk 0:02:17.5]} 15.
Rg3 {[%clk 0:01:42.5]} 15... Qf6 {[%clk 0:01:23.3]} 16. Bg5 {[%clk 0:01:28.2]}
16... Qxf2 {[%clk 0:01:22.1]} 17. Bxe7 {[%clk 0:01:27.6]} 17... Kxe7 {[%clk
0:01:22.3]} 18. Qxc6 {[%clk 0:01:26.1]} 18... Qf4+ {[%clk 0:01:21]} 19. Kb1
{[%clk 0:01:16.9]} 19... Rb8+ {[%clk 0:00:59.6]} 20. Ka1 {[%clk 0:01:16.7]}
20... g6 {[%clk 0:00:58.3]} 21. Rf3 {[%clk 0:00:44.3]} 21... Qd6 {[%clk
0:00:58]} 22. Qc4 {[%clk 0:00:29.2]} 22... Rb6 {[%clk 0:00:44.6]} 23. Rdf1
{[%clk 0:00:28]} 23... f5 {[%clk 0:00:44.4]} 24. Re3 {[%clk 0:00:22.7]} 24...
Rc6 {[%clk 0:00:41.2]} 25. Qb3 {[%clk 0:00:20.5]} 25... Rb6 {[%clk 0:00:40.7]}
26. Qc4 {[%clk 0:00:20.7]} 26... Kd7 {[%clk 0:00:35.4]} 27. Rfe1 {[%clk
0:00:20.4]} 27... Re8 {[%clk 0:00:24.7]} 28. d5 {[%clk 0:00:19.9]} 28... e5
{[%clk 0:00:25.1]} 29. Qa4+ {[%clk 0:00:18.6]} 29... Kd8 {[%clk 0:00:22.8]} 30.
Qxa7 {[%clk 0:00:18.8]} 30... e4 {[%clk 0:00:17.3]} 31. Rh3 {[%clk 0:00:16.9]}
31... h5 {[%clk 0:00:14.5]} 32. Rg3 {[%clk 0:00:16]} 32... f4 {[%clk 0:00:09.3]}
33. Rg5 {[%clk 0:00:15.5]} 33... e3 {[%clk 0:00:07.6]} 34. Reg1 {[%clk
0:00:13.8]} 34... e2 {[%clk 0:00:07.6]} 35. Re1 {[%clk 0:00:10.9]} 35... f3
{[%clk 0:00:08]} 36. Qa8+ {[%clk 0:00:07.9]} 36... Ke7 {[%clk 0:00:06.8]} 37.
Qa4 {[%clk 0:00:04.7]} 37... Qf6 {[%clk 0:00:06]} 38. Qe4+ {[%clk 0:00:03.4]}
38... Kf7 {[%clk 0:00:05.2]} 39. Qh4 {[%clk 0:00:01.5]} 39... Qxc3# {[%clk
0:00:05]} 0-1

[Event "*** Titled Tuesday Blitz"]
[Site "Chess.com"]
[Date "2021.02.16"]
[Round "2"]
[White "Nils_03"]
[Black "bazar-wokzal"]
[Result "1-0"]
[WhiteElo "2343"]
[BlackElo "2575"]
[TimeControl "180+1"]
[EndTime "10:19:22 PST"]
[Termination "Nils_03 won by checkmate"]

1. e4 {[%clk 0:03:00.9]} 1... Nc6 {[%clk 0:02:54.1]} 2. d4 {[%clk 0:02:58.2]}
2... d5 {[%clk 0:02:53.7]} 3. e5 {[%clk 0:02:58.5]} 3... h5 {[%clk 0:02:53.1]}
4. c3 {[%clk 0:02:57.7]} 4... Bg4 {[%clk 0:02:50.7]} 5. Ne2 {[%clk 0:02:49]}
5... Qd7 {[%clk 0:02:48.7]} 6. h3 {[%clk 0:02:48.9]} 6... Bxe2 {[%clk
0:02:47.7]} 7. Bxe2 {[%clk 0:02:48.9]} 7... h4 {[%clk 0:02:46.7]} 8. Nd2 {[%clk
0:02:43.6]} 8... O-O-O {[%clk 0:02:43.4]} 9. Nf3 {[%clk 0:02:40.1]} 9... f6
{[%clk 0:01:36.5]} 10. Bf4 {[%clk 0:02:31.8]} 10... g5 {[%clk 0:01:30.5]} 11.
Bh2 {[%clk 0:02:04.1]} 11... Bg7 {[%clk 0:01:25.2]} 12. Qd2 {[%clk 0:01:55.8]}
12... fxe5 {[%clk 0:01:13.3]} 13. Nxg5 {[%clk 0:01:53.1]} 13... Nh6 {[%clk
0:01:04.3]} 14. dxe5 {[%clk 0:01:39.1]} 14... Bxe5 {[%clk 0:00:57.4]} 15. Bxe5
{[%clk 0:01:36.9]} 15... Nxe5 {[%clk 0:00:57.2]} 16. O-O-O {[%clk 0:01:35.5]}
16... Kb8 {[%clk 0:00:51.7]} 17. Nf3 {[%clk 0:01:24.7]} 17... Nhf7 {[%clk
0:00:47.5]} 18. Qf4 {[%clk 0:01:17.4]} 18... Qd6 {[%clk 0:00:38.3]} 19. Kb1
{[%clk 0:01:07.9]} 19... Qg6+ {[%clk 0:00:37.1]} 20. Ka1 {[%clk 0:01:06]} 20...
Nxf3 {[%clk 0:00:37.1]} 21. Bxf3 {[%clk 0:01:05.2]} 21... e5 {[%clk 0:00:37.3]}
22. Qg4 {[%clk 0:00:58.6]} 22... Qxg4 {[%clk 0:00:33.5]} 23. Bxg4 {[%clk
0:00:58.8]} 23... e4 {[%clk 0:00:33.3]} 24. Be6 {[%clk 0:00:56.8]} 24... Ne5
{[%clk 0:00:32.3]} 25. Rxd5 {[%clk 0:00:54.6]} 25... Nd3 {[%clk 0:00:29.6]} 26.
f3 {[%clk 0:00:45.8]} 26... exf3 {[%clk 0:00:28.1]} 27. gxf3 {[%clk 0:00:46.7]}
27... Nf4 {[%clk 0:00:28.1]} 28. Rxd8+ {[%clk 0:00:45.2]} 28... Rxd8 {[%clk
0:00:29]} 29. Bg4 {[%clk 0:00:43.6]} 29... c5 {[%clk 0:00:28.2]} 30. a4 {[%clk
0:00:42.8]} 30... Rd2 {[%clk 0:00:28]} 31. Re1 {[%clk 0:00:38.5]} 31... Kc7
{[%clk 0:00:27.8]} 32. Re7+ {[%clk 0:00:37.7]} 32... Kb6 {[%clk 0:00:27.9]} 33.
Bc8 {[%clk 0:00:24.1]} 33... Ka5 {[%clk 0:00:28]} 34. Rxb7 {[%clk 0:00:22.4]}
34... a6 {[%clk 0:00:19.8]} 35. Bd7 {[%clk 0:00:19]} 35... Rxd7 {[%clk
0:00:17.4]} 36. Rxd7 {[%clk 0:00:18.3]} 36... Nxh3 {[%clk 0:00:18.3]} 37. Rh7
{[%clk 0:00:17.4]} 37... Ng5 {[%clk 0:00:18.1]} 38. f4 {[%clk 0:00:16.1]} 38...
Nf3 {[%clk 0:00:19]} 39. f5 {[%clk 0:00:15.6]} 39... Ng5 {[%clk 0:00:14.6]} 40.
Rxh4 {[%clk 0:00:15.3]} 40... c4 {[%clk 0:00:12.9]} 41. Rxc4 {[%clk 0:00:14.2]}
41... Nf7 {[%clk 0:00:12.5]} 42. Rc7 {[%clk 0:00:13.7]} 42... Nd6 {[%clk
0:00:12.4]} 43. f6 {[%clk 0:00:13.7]} 43... Kxa4 {[%clk 0:00:12.6]} 44. f7
{[%clk 0:00:13.8]} 44... Nb5 {[%clk 0:00:12.9]} 45. f8=Q {[%clk 0:00:13.1]}
45... Nxc7 {[%clk 0:00:13.3]} 46. Qb4# {[%clk 0:00:13.1]} 1-0

[Event "*** Titled Tuesday Blitz"]
[Site "Chess.com"]
[Date "2021.02.16"]
[Round "2"]
[White "Vasily85"]
[Black "Kapibara_Warri0r"]
[Result "1/2-1/2"]
[WhiteElo "2419"]
[BlackElo "2171"]
[TimeControl "180+1"]
[EndTime "10:19:23 PST"]
[Termination "Game drawn - insufficient material"]

1. d4 {[%clk 0:03:00.9]} 1... Nf6 {[%clk 0:02:59.8]} 2. Nc3 {[%clk 0:03:01.4]}
2... g6 {[%clk 0:02:59.6]} 3. Bf4 {[%clk 0:02:59.1]} 3... Bg7 {[%clk 0:02:59.6]}
4. e4 {[%clk 0:02:59.6]} 4... d6 {[%clk 0:02:56.1]} 5. Qd2 {[%clk 0:02:57]} 5...
h6 {[%clk 0:02:38.8]} 6. Nf3 {[%clk 0:02:46.4]} 6... g5 {[%clk 0:02:36.5]} 7.
Bg3 {[%clk 0:02:42.5]} 7... Nbd7 {[%clk 0:02:33.2]} 8. Bc4 {[%clk 0:02:24.2]}
8... c5 {[%clk 0:02:23.4]} 9. dxc5 {[%clk 0:02:00.4]} 9... Nxc5 {[%clk
0:02:24.3]} 10. e5 {[%clk 0:01:56.5]} 10... Nh5 {[%clk 0:01:46.8]} 11. exd6
{[%clk 0:01:12.2]} 11... Nxg3 {[%clk 0:01:46.2]} 12. Bb5+ {[%clk 0:01:02.5]}
12... Bd7 {[%clk 0:01:38.9]} 13. hxg3 {[%clk 0:00:53.2]} 13... exd6 {[%clk
0:01:29.5]} 14. O-O-O {[%clk 0:00:50.7]} 14... Bxb5 {[%clk 0:01:05.4]} 15. Rhe1+
{[%clk 0:00:45]} 15... Ne6 {[%clk 0:00:57.6]} 16. Nxb5 {[%clk 0:00:45]} 16...
O-O {[%clk 0:00:57.8]} 17. Nxd6 {[%clk 0:00:38]} 17... Qb6 {[%clk 0:00:53.2]}
18. Nc4 {[%clk 0:00:33.5]} 18... Qa6 {[%clk 0:00:51.5]} 19. Qb4 {[%clk
0:00:19.2]} 19... Qxa2 {[%clk 0:00:40.6]} 20. c3 {[%clk 0:00:16.4]} 20... b5
{[%clk 0:00:33.2]} 21. Nd6 {[%clk 0:00:10]} 21... a5 {[%clk 0:00:30]} 22. Qa3
{[%clk 0:00:07.8]} 22... Qxa3 {[%clk 0:00:26]} 23. bxa3 {[%clk 0:00:08.7]} 23...
Bxc3 {[%clk 0:00:26.3]} 24. Re3 {[%clk 0:00:07.6]} 24... Bf6 {[%clk 0:00:19.9]}
25. Ne5 {[%clk 0:00:04.6]} 25... g4 {[%clk 0:00:16.5]} 26. Nexf7 {[%clk
0:00:04.6]} 26... Rxf7 {[%clk 0:00:14.8]} 27. Rxe6 {[%clk 0:00:05]} 27... Bg5+
{[%clk 0:00:13.8]} 28. Kb2 {[%clk 0:00:04.9]} 28... Rxf2+ {[%clk 0:00:13.4]} 29.
Kb1 {[%clk 0:00:04.6]} 29... Raf8 {[%clk 0:00:11.5]} 30. Ne4 {[%clk 0:00:04.2]}
30... Rxg2 {[%clk 0:00:11.1]} 31. Nxg5 {[%clk 0:00:04.1]} 31... hxg5 {[%clk
0:00:11.6]} 32. Rg6+ {[%clk 0:00:04.7]} 32... Kh7 {[%clk 0:00:08.5]} 33. Rxg5
{[%clk 0:00:05.6]} 33... Rh2 {[%clk 0:00:08.7]} 34. Rxg4 {[%clk 0:00:05.4]}
34... Rff2 {[%clk 0:00:07.6]} 35. Rd7+ {[%clk 0:00:04.4]} 35... Kh6 {[%clk
0:00:07.1]} 36. Rh4+ {[%clk 0:00:04.8]} 36... Rxh4 {[%clk 0:00:07.1]} 37. gxh4
{[%clk 0:00:05.7]} 37... b4 {[%clk 0:00:06.2]} 38. axb4 {[%clk 0:00:05.6]} 38...
axb4 {[%clk 0:00:07.1]} 39. Rb7 {[%clk 0:00:06]} 39... Rf4 {[%clk 0:00:07]} 40.
Kb2 {[%clk 0:00:06]} 40... Kh5 {[%clk 0:00:07.4]} 41. Kb3 {[%clk 0:00:06.2]}
41... Kxh4 {[%clk 0:00:08]} 42. Rxb4 {[%clk 0:00:07.1]} 42... Rxb4+ {[%clk
0:00:07.9]} 43. Kxb4 {[%clk 0:00:08]} 1/2-1/2

[Event "*** Titled Tuesday Blitz"]
[Site "Chess.com"]
[Date "2021.02.16"]
[Round "2"]
[White "Sadykov_Ramil"]
[Black "SimplyDevina"]
[Result "1-0"]
[WhiteElo "2547"]
[BlackElo "2232"]
[TimeControl "180+1"]
[EndTime "10:19:25 PST"]
[Termination "Sadykov_Ramil won by resignation"]

1. e4 {[%clk 0:02:12.8]} 1... d5 {[%clk 0:02:57.9]} 2. exd5 {[%clk 0:02:11.5]}
2... Qxd5 {[%clk 0:02:58.8]} 3. Nc3 {[%clk 0:02:10.9]} 3... Qd8 {[%clk
0:02:58.4]} 4. d4 {[%clk 0:02:04]} 4... Nf6 {[%clk 0:02:58.6]} 5. Nf3 {[%clk
0:01:56.2]} 5... g6 {[%clk 0:02:58.1]} 6. Be2 {[%clk 0:01:51.7]} 6... Bg7 {[%clk
0:02:58.5]} 7. h3 {[%clk 0:01:49.8]} 7... O-O {[%clk 0:02:59]} 8. O-O {[%clk
0:01:50.1]} 8... a6 {[%clk 0:02:59.1]} 9. Bf4 {[%clk 0:01:49.3]} 9... b5 {[%clk
0:02:58.8]} 10. Ne5 {[%clk 0:01:39]} 10... Bb7 {[%clk 0:02:57.2]} 11. Bf3 {[%clk
0:01:39.1]} 11... Qc8 {[%clk 0:02:49]} 12. Re1 {[%clk 0:01:24]} 12... e6 {[%clk
0:02:32.4]} 13. a4 {[%clk 0:01:17.4]} 13... b4 {[%clk 0:02:27.6]} 14. Ne4 {[%clk
0:01:14.9]} 14... Nxe4 {[%clk 0:02:25.8]} 15. Bxe4 {[%clk 0:01:15.8]} 15... Bxe4
{[%clk 0:02:26.1]} 16. Rxe4 {[%clk 0:01:16.4]} 16... Qb7 {[%clk 0:02:18]} 17.
Qd3 {[%clk 0:01:08.8]} 17... Rd8 {[%clk 0:01:49.2]} 18. Rae1 {[%clk 0:01:07.7]}
18... Nc6 {[%clk 0:01:43.2]} 19. Qc4 {[%clk 0:01:00.5]} 19... Na5 {[%clk
0:01:12.7]} 20. Qe2 {[%clk 0:00:57.2]} 20... Nc6 {[%clk 0:01:02.4]} 21. c3
{[%clk 0:00:49.1]} 21... Rab8 {[%clk 0:00:42.1]} 22. Qf3 {[%clk 0:00:13.4]}
22... Nxe5 {[%clk 0:00:39]} 23. Bxe5 {[%clk 0:00:13.4]} 23... bxc3 {[%clk
0:00:15.2]} 24. bxc3 {[%clk 0:00:06.7]} 24... Rd7 {[%clk 0:00:08.3]} 25. Bxg7
{[%clk 0:00:02.8]} 25... Kxg7 {[%clk 0:00:08.7]} 26. h4 {[%clk 0:00:03.1]} 26...
Qd5 {[%clk 0:00:08.2]} 27. h5 {[%clk 0:00:02.8]} 27... Qxh5 {[%clk 0:00:04.3]}
28. Qxh5 {[%clk 0:00:03]} 28... gxh5 {[%clk 0:00:05.2]} 29. Re5 {[%clk
0:00:03.9]} 29... Rb3 {[%clk 0:00:03]} 30. R1e3 {[%clk 0:00:04.4]} 30... Kf6
{[%clk 0:00:02.3]} 31. Rxh5 {[%clk 0:00:04.3]} 31... Kg7 {[%clk 0:00:02.2]} 32.
Ra5 {[%clk 0:00:04.6]} 32... Rd6 {[%clk 0:00:01.7]} 33. Rg3+ {[%clk 0:00:04.7]}
33... Kf8 {[%clk 0:00:01.7]} 34. Rh5 {[%clk 0:00:04.5]} 34... Ke7 {[%clk
0:00:02.6]} 35. Rxh7 {[%clk 0:00:04.7]} 35... Rb1+ {[%clk 0:00:03.5]} 36. Kh2
{[%clk 0:00:04.4]} 36... Rb2 {[%clk 0:00:04.4]} 37. Rf3 {[%clk 0:00:04.4]} 37...
Rd5 {[%clk 0:00:02.4]} 38. Rfxf7+ {[%clk 0:00:04.4]} 38... Ke8 {[%clk 0:00:02]}
39. Rxc7 {[%clk 0:00:04.1]} 39... Kd8 {[%clk 0:00:01.2]} 40. Ra7 {[%clk
0:00:03.9]} 40... Rd7 {[%clk 0:00:01.5]} 1-0